bitfinex-derivatives/quotes_BNBF0:USTF0_20250424
["timestamp","ask_amount","ask_price","bid_price","bid_amount"]
[1745535915000,0.29045868,600.3,598.4,0.30661644]
[1745535915600,0.29045868,600.3,598.28,0.29045868]
[1745535915601,1.27273016,600.25,598.45,1.05922751]
[1745535915894,1.27273016,600.25,598.46,0.30660599]
[1745535918001,0.29045868,600.24,598.46,0.30660599]
[1745535919703,1.27273016,600.25,598.46,0.30660599]
[1745535920297,1.27273016,600.25,598.45,1.05922751]
[1745535920499,1.27273016,600.14,598.5,1.05922751]
[1745535920798,1.27273016,600.14,598.51,0.30660561]
[1745535921002,0.29046596,600.13,598.51,0.30660561]
[1745535921896,0.29046596,600.13,598.5,1.05922751]
[1745535922101,0.29046596,600.13,598.52,0.30660544]
[1745535922401,0.29046596,600.13,598.53,0.30660544]
[1745535922598,0.29046596,600.13,598.51,0.30660544]
[1745535922802,1.27273016,600.14,598.51,0.30660544]
[1745535923004,0.29046596,600.12,598.51,0.30660544]
[1745535923599,1.27273016,600.1,598.52,1.05922751]
[1745535923801,1.27273016,600.1,598.53,0.30660544]
[1745535925503,1.56319612,600.12,598.53,0.30660544]
[1745535925698,1.56319612,600.12,598.5,1.05922751]
[1745535925699,1.27273016,600.12,598.54,0.30660544]
[1745535925903,1.27273016,600.12,598.55,0.30660544]
[1745535926097,1.27273016,600.12,598.56,0.30660544]
[1745535926301,1.27273016,600.12,598.57,0.30660544]
[1745535926502,1.27273016,600.12,598.51,0.30660544]
[1745535926805,1.27273016,600.12,598.52,0.3066051]
[1745535927103,0.29046838,600.11,598.53,0.3066051]
[1745535927303,0.29046838,600.11,598.5,1.05922751]
[1745535927304,0.29046838,600.11,598.51,0.3066051]
[1745535927599,0.29046838,600.11,598.52,0.3066051]
[1745535927803,0.29046838,600.11,598.51,0.3066051]
[1745535928103,0.29046838,600.11,598.5,1.05922751]
[1745535928301,0.29046838,600.11,598.51,0.30656724]
[1745535928799,1.27273016,600.15,598.52,0.30656724]
[1745535929003,1.27273016,600.15,598.49,0.30656724]
[1745535929199,1.27273016,600.15,598.49,1.76856724]
[1745535929503,1.27273016,600.15,598.5,0.30656724]
[1745535930106,0.29042717,600.14,598.5,0.30656724]
[1745535931206,0.29042717,600.14,598.49,1.462]
[1745535931407,0.29042717,600.14,598.5,0.30655247]
[1745535931906,1.27273016,600.58,598.5,0.30655247]
[1745535932408,1.27273016,600.58,598.51,1.009]
[1745535932708,1.27273016,600.58,598.52,0.30655247]
[1745535932908,1.27273016,600.58,598.53,0.30655187]
[1745535933108,0.29037264,600.57,598.54,0.30655187]
[1745535933303,0.29037264,600.57,598.55,0.30655187]
[1745535933503,0.29037264,600.57,598.56,0.30655187]
[1745535933703,0.29037264,600.57,598.52,0.30655187]
[1745535933907,0.29037264,600.57,598.53,0.30655187]
[1745535934209,0.29037264,600.57,598.54,0.30655187]
[1745535934408,0.29037264,600.57,598.52,0.30655187]
[1745535934606,0.29037264,600.57,598.53,0.30655187]
[1745535934805,1.27273016,600.64,598.54,0.30655187]
[1745535935006,1.27273016,600.64,598.55,0.30655187]
[1745535935203,1.27273016,600.64,598.56,0.30655187]
[1745535935406,1.27273016,600.64,598.52,0.30655187]
[1745535935709,1.27273016,600.64,598.53,0.30655187]
[1745535936010,0.29036538,600.63,598.54,0.30655187]
[1745535936209,0.29036538,600.63,598.52,0.30655187]
[1745535936412,0.29036538,600.63,598.53,0.30655187]
[1745535936711,0.29036538,600.63,598.54,0.30655187]
[1745535937008,1.27273016,600.35,598.55,0.30655187]
[1745535937205,1.27273016,600.35,598.56,0.30655187]
[1745535937406,1.27273016,600.35,598.54,0.30655187]
[1745535937606,1.27273016,600.35,598.55,0.30655187]
[1745535937809,1.27273016,600.35,598.56,0.30655187]
[1745535938009,1.27273016,600.35,598.57,0.30655187]
[1745535938212,1.27273016,600.35,598.58,0.30655187]
[1745535938406,1.27273016,600.35,598.59,0.30655187]
[1745535938607,1.27273016,600.35,598.54,0.30655187]
[1745535938811,1.27273016,600.35,598.55,0.30655187]
[1745535939013,0.29039809,600.34,598.54,0.30655187]
[1745535939207,0.29039809,600.34,598.55,0.30655187]
[1745535939409,0.29039809,600.34,598.54,0.30655187]
[1745535939607,0.29039809,600.34,598.55,0.30655187]
[1745535939811,1.27273016,600.33,598.54,1.36577938]
[1745535940113,1.27273016,600.33,598.55,0.30655187]
[1745535940709,1.27273016,600.33,598.54,2.31622751]
[1745535941013,1.27273016,600.33,598.55,0.30654635]
[1745535942016,0.2903993,600.32,598.55,0.30654635]
[1745535942216,1.27273016,600.26,598.55,1.05922751]
[1745535942416,1.27273016,600.26,598.56,0.30655297]
[1745535943910,1.27273016,600.26,598.57,0.30655387]
[1745535944113,1.27273016,600.26,598.56,0.30655387]
[1745535944314,1.27273016,600.26,598.57,0.30655387]
[1745535944510,1.27273016,600.26,598.56,0.30655387]
[1745535944713,1.27273016,600.26,598.57,0.30655387]
[1745535944911,1.27273016,600.26,598.55,1.05922751]
[1745535944912,1.27273016,600.26,598.56,0.30655387]
[1745535945212,1.27273016,600.19,598.58,1.503]
[1745535945417,1.27273016,600.19,598.59,0.30654989]
[1745535946918,1.27273016,600.19,598.58,1.503]
[1745535947112,0.29043808,600.18,598.59,0.30658394]
[1745535948320,1.27273016,600.14,598.59,0.30658394]
[1745535950015,0.29045262,600.13,598.59,0.30658394]
[1745535952925,1.27273016,600.27,598.59,0.30658394]
[1745535953224,0.29042838,600.12,598.6,0.30657986]
[1745535953425,1.27273016,600.27,598.61,0.30657986]
[1745535953624,1.27273016,600.53,598.62,0.30657986]
[1745535953824,1.27273016,600.53,598.63,0.30657986]
[1745535954124,0.29039688,600.52,598.58,1.503]
[1745535954319,0.29039688,600.52,598.59,0.30657651]
[1745535955626,0.29039688,600.52,598.6,0.99]
[1745535955827,1.27273016,600.53,598.61,0.30657651]
[1745535956029,1.27273016,600.55,598.61,0.30657651]
[1745535956923,0.29037991,600.54,598.61,0.30657651]
[1745535957128,0.29037991,600.54,598.6,0.99]
[1745535957424,0.29037991,600.54,598.61,0.30656668]
[1745535957828,0.29037991,600.54,598.62,1.386]
[1745535958031,0.29037991,600.54,598.63,0.30656786]
[1745535958726,1.27273016,600.55,598.63,0.30656786]
[1745535959432,1.27273016,600.55,598.62,1.386]
[1745535960037,0.2903993,600.54,598.62,1.386]
[1745535960835,1.27273016,600.5,598.62,1.386]
[1745535962736,1.27273016,600.42,598.62,1.386]
[1745535965036,1.27273016,600.42,598.63,1.172]
[1745535966033,0.29041384,600.41,598.63,1.172]
[1745535967643,1.27273016,600.39,598.63,1.172]
[1745535969040,0.29041748,600.38,598.63,1.172]
[1745535970741,1.27273016,600.4,598.63,1.172]
[1745535972040,0.29041626,600.39,598.63,1.172]
[1745535972546,1.27273016,600.33,598.63,1.172]
[1745535974040,1.27273016,600.33,598.64,0.956]
[1745535975046,0.29042353,600.32,598.64,0.956]
[1745535975247,0.29042353,600.32,598.65,0.3066059]
[1745535976551,1.27273016,600.29,598.65,0.3066059]
[1745535978153,0.29042596,600.28,598.65,0.3066059]
[1745535979655,1.27273016,600.24,598.65,0.3066059]
[1745535980457,1.27273016,600.24,598.64,0.956]
[1745535980655,1.27273016,600.24,598.65,0.30660448]
[1745535980962,0.29042717,600.23,598.65,0.30660448]
[1745535981955,0.29042717,600.23,598.64,0.956]
[1745535982156,0.29042717,600.23,598.65,0.30660453]
[1745535982358,1.27273016,600.2,598.65,0.30660453]
[1745535982655,1.27273016,600.2,598.65,1.57960453]
[1745535982852,1.27273016,600.2,598.66,0.30660453]
[1745535983455,1.27273016,600.2,598.65,1.273]
[1745535983651,1.27273016,600.2,598.66,0.30660359]
[1745535984053,0.29043081,600.19,598.66,0.30660359]
[1745535985057,1.27273016,600.17,598.65,1.273]
[1745535985251,1.27273016,600.17,598.66,0.30660438]
[1745535987056,0.29043565,600.16,598.66,0.30660438]
[1745535988156,0.29043565,600.16,598.65,1.273]
[1745535988357,0.29043565,600.16,598.66,0.30660676]
[1745535988754,1.27273016,600.17,598.66,0.30660676]
[1745535988951,1.27273016,600.17,598.66,1.40660676]
[1745535989153,1.27273016,600.17,598.67,0.30660676]
[1745535989657,1.27273016,600.17,598.66,1.1]
[1745535989857,1.27273016,600.17,598.67,0.30661384]
[1745535990059,0.29043808,600.16,598.67,0.30661384]
[1745535991159,1.27273016,600.15,598.66,1.1]
[1745535991360,1.27273016,600.15,598.67,0.30661208]
[1745535994356,1.27273016,600.07,598.67,0.30661208]
[1745535995862,1.27273016,600.07,598.66,1.1]
[1745535996062,1.27273016,600.07,598.67,0.30661172]
[1745535997162,1.27273016,600.1,598.67,0.30661172]
[1745535997361,1.27273016,600.1,598.66,1.1]
[1745535997558,1.27273016,600.1,598.67,0.3066118]
[1745535998063,1.27273016,600.1,598.67,1.3716118]
[1745535998258,1.27273016,600.1,598.68,0.3066118]
[1745535998563,1.27273016,600.1,598.67,1.065]
[1745535999159,0.29044535,600.09,598.67,1.065]
[1745535999363,0.29044535,600.09,598.68,0.30661227]
[1745535999763,0.29044535,600.09,598.67,1.065]
[1745536000166,1.56317551,600.09,598.67,1.065]
[1745536000559,1.56317551,600.09,598.67,2.221]
[1745536002771,0.29044535,600.09,598.67,2.221]
[1745536009870,1.27273016,600.45,598.67,2.221]
[1745536010377,1.27273016,600.45,598.68,0.3065137]
[1745536011175,0.29034478,600.44,598.68,0.3065137]
[1745536012777,1.27273016,600.85,598.67,2.221]
[1745536012976,1.27273016,600.85,598.68,0.30647352]
[1745536014077,0.2902915,600.84,598.68,0.30647352]
[1745536015778,1.27273016,600.88,598.68,0.30647352]
[1745536017073,0.29028787,600.87,598.68,0.30647352]
[1745536017277,0.29028787,600.87,598.67,2.221]
[1745536017479,0.29028787,600.87,598.68,0.30646634]
[1745536017778,0.29028787,600.87,598.67,2.221]
[1745536018179,1.27273016,600.77,598.68,0.30646429]
[1745536019876,1.27273016,600.77,598.68,1.48946429]
[1745536020082,0.29028908,600.76,598.69,0.30646429]
[1745536020983,1.56301924,600.76,598.69,0.30646429]
[1745536021883,1.27273016,600.76,598.69,0.30646429]
[1745536022586,1.27273016,600.76,598.7,1.042]
[1745536022784,1.27273016,600.76,598.71,0.30646429]
[1745536022980,0.29028424,600.75,598.71,0.30646429]
[1745536023385,1.27273016,600.7,598.71,0.30646429]
[1745536023581,1.27273016,600.7,598.72,0.30644926]
[1745536023882,1.27273016,600.7,598.73,0.30644926]
[1745536024085,1.27273016,600.7,598.74,0.30644926]
[1745536024385,1.27273016,600.7,598.75,0.30644926]
[1745536024583,1.27273016,600.7,598.76,0.30644926]
[1745536024781,1.27273016,600.7,598.77,0.30644926]
[1745536024981,1.27273016,600.7,598.78,0.30644926]
[1745536025186,1.27273016,600.7,598.7,1.042]
[1745536025386,1.27273016,600.7,598.71,0.30645583]
[1745536025983,2.16540896,600.81,598.71,0.30645583]
[1745536026284,1.27273016,600.87,598.71,0.59674733]
[1745536026489,1.27273016,600.87,598.72,0.30645583]
[1745536027983,0.29026971,600.86,598.71,0.30645583]
[1745536028187,0.29026971,600.86,598.7,1.042]
[1745536028188,0.29026971,600.86,598.72,0.30645583]
[1745536028388,0.29026971,600.86,598.7,1.042]
[1745536028584,0.29026971,600.86,598.71,0.30645661]
[1745536028785,1.27273016,600.84,598.71,0.30645661]
[1745536029190,1.27273016,600.84,598.71,0.59672753]
[1745536029390,1.27273016,600.84,598.72,0.30645661]
[1745536029886,1.27273016,600.84,598.71,0.29027092]
[1745536030091,1.27273016,600.84,598.72,0.30645688]
[1745536030893,1.27273016,600.85,598.73,1.19]
[1745536031089,1.27273016,600.85,598.74,0.30645688]
[1745536033190,0.29026971,600.86,598.74,0.30645688]
[1745536033790,1.27273016,600.88,598.74,0.30645688]
[1745536034495,1.27273016,600.88,598.73,1.19]
[1745536034690,1.27273016,600.88,598.74,0.30645228]
[1745536034995,0.29026608,600.87,598.74,0.30645228]
[1745536035795,1.27273016,600.74,598.74,0.30645228]
[1745536037694,1.27273016,600.74,598.73,1.19]
[1745536037893,1.27273016,600.74,598.75,0.30644521]
[1745536038091,0.29028303,600.73,598.76,0.30644521]
[1745536038295,0.29028303,600.73,598.74,0.30644521]
[1745536038497,0.29028303,600.73,598.75,0.30644521]
[1745536038696,1.27273016,600.72,598.74,0.30644521]
[1745536039199,1.27273016,600.72,598.73,1.19]
[1745536039397,1.27273016,600.72,598.75,0.30640139]
[1745536039599,1.27273016,600.72,598.74,0.30640139]
[1745536039798,1.27273016,600.72,598.75,0.30640139]
[1745536040097,1.27273016,600.72,598.76,0.30640139]
[1745536040393,1.27273016,600.72,598.77,1.83740139]
[1745536040597,1.27273016,600.72,598.78,0.30640139]
[1745536041097,0.29025155,600.71,598.78,0.30640139]
[1745536042298,0.29025155,600.71,598.77,1.531]
[1745536042498,0.29025155,600.71,598.78,0.30637491]
[1745536042798,1.27273016,601.3,598.78,0.30637491]
[1745536043801,1.27273016,601.3,598.77,1.531]
[1745536044001,1.27273016,601.3,598.78,0.30636691]
[1745536044198,0.29016685,601.29,598.78,0.30636691]
[1745536044502,1.56289701,601.29,598.78,0.30636691]
[1745536045996,1.27273016,601.29,598.78,0.30636691]
[1745536046302,0.29016806,601.28,598.79,0.30636316]
[1745536046495,0.29016806,601.28,598.78,0.30636316]
[1745536046896,0.29016806,601.28,598.78,1.418]
[1745536047201,0.29016806,601.28,598.79,0.30636646]
[1745536048496,0.29016806,601.28,598.78,1.418]
[1745536048801,1.27273016,601.29,598.79,0.306366]
[1745536049703,1.27273016,601.29,598.78,1.418]
[1745536049998,0.29015475,601.28,598.78,1.418]
[1745536050698,0.29015475,601.28,598.82,1.05922751]
[1745536050699,1.27273016,600.82,598.82,1.05922751]
[1745536051702,1.27273016,600.82,598.83,1.361]
[1745536053104,0.29021282,600.81,598.83,1.361]
[1745536053804,0.29021282,600.81,598.84,1.21]
[1745536057806,1.27273016,602.23,598.84,1.21]
[1745536059106,0.29004109,602.22,598.84,1.21]
[1745536059308,1.27273016,602.09,598.84,1.21]
[1745536059607,1.27273016,602.09,598.85,0.30633262]
[1745536060808,1.27273016,602.09,598.84,1.21]
[1745536061007,1.27273016,602.09,598.85,0.30633234]
[1745536061203,1.27273016,602.09,598.86,0.30633234]
[1745536061403,1.27273016,602.09,598.87,0.30633234]
[1745536061607,1.27273016,602.09,598.88,0.30633234]
[1745536061805,1.27273016,602.09,598.89,0.30633234]
[1745536062103,0.29005801,602.08,598.9,0.30633234]
[1745536062407,0.29005801,602.08,598.91,0.30633234]
[1745536062608,1.27273016,601.24,598.92,0.30633234]
[1745536062808,1.27273016,601.24,598.93,0.30633234]
[1745536063009,1.27273016,601.24,598.94,0.30633234]
[1745536063206,1.27273016,601.24,598.95,0.30633234]
[1745536063406,1.27273016,601.24,598.96,0.30633234]
[1745536063604,1.27273016,601.24,598.97,0.30633234]
[1745536063807,1.27273016,601.24,598.98,0.30633234]
[1745536064009,1.27273016,601.24,598.99,0.30634612]
[1745536064210,1.27273016,601.24,599.0,0.30634612]
[1745536064402,1.27273016,601.24,599.01,0.30634612]
[1745536064605,1.27273016,601.24,598.84,1.21]
[1745536064809,1.27273016,600.71,598.89,1.05922751]
[1745536065006,1.27273016,600.71,598.9,0.30634487]
[1745536065509,1.27273016,600.71,598.91,0.30634617]
[1745536065709,1.27273016,600.71,598.92,0.30634617]
[1745536065907,1.27273016,600.71,598.9,0.30634617]
[1745536066110,1.27273016,600.71,598.91,0.30634617]
[1745536066308,1.27273016,600.71,598.92,0.30634617]
[1745536066509,1.27273016,600.71,598.93,0.30634617]
[1745536066714,1.27273016,600.71,598.94,0.30634617]
[1745536066914,1.27273016,600.71,598.9,0.30634617]
[1745536067112,1.27273016,600.71,598.91,0.30634617]
[1745536067412,1.27273016,600.71,598.92,0.30634617]
[1745536067611,1.27273016,600.71,598.93,0.30634617]
[1745536067809,1.27273016,600.71,598.94,0.30634617]
[1745536068009,0.29021887,600.7,598.95,0.30634617]
[1745536068208,0.29021887,600.7,598.96,0.30634617]
[1745536068413,0.29021887,600.7,598.97,0.30634617]
[1745536068613,0.29021887,600.7,598.98,0.30632808]
[1745536068814,0.29021887,600.7,598.98,1.081]
[1745536069013,0.29021887,600.7,598.99,0.30632808]
[1745536069814,1.27273016,600.71,598.99,0.30632808]
[1745536070013,1.27273016,600.71,598.98,1.081]
[1745536070214,1.27273016,600.71,598.99,0.30633452]
[1745536071115,0.29020798,600.7,598.99,0.30633452]
[1745536071616,0.29020798,600.7,598.98,1.081]
[1745536071813,0.29020798,600.7,598.99,0.30632452]
[1745536072818,1.27273016,600.72,598.99,0.30632452]
[1745536073117,1.27273016,600.72,599.0,1.255]
[1745536073317,0.61175184,605.76,599.0,1.255]
[1745536073318,1.27273016,600.65,599.01,0.30632452]
[1745536074122,0.29021282,600.64,599.01,0.30632452]
[1745536074723,0.29021282,600.64,599.02,0.3063282]
[1745536074922,0.29021282,600.64,599.03,0.3063282]
[1745536075118,0.29021282,600.64,599.04,0.3063282]
[1745536075319,0.29021282,600.64,599.05,0.3063282]
[1745536075519,0.29021282,600.64,599.01,0.3063282]
[1745536075719,0.29021282,600.64,599.02,0.3063282]
[1745536076026,1.27273016,600.65,599.03,0.3063282]
[1745536076223,1.27273016,600.65,599.02,1.345]
[1745536076423,1.27273016,600.65,599.08,1.05922751]
[1745536076722,2.16540896,600.67,599.09,0.3063282]
[1745536076723,1.27273016,600.57,599.09,0.3063282]
[1745536077526,1.27273016,600.57,599.08,1.05922751]
[1745536077726,1.27273016,600.57,599.09,0.30633145]
[1745536079530,1.27273016,600.56,599.12,1.05922751]
[1745536079730,1.27273016,600.56,599.13,0.30633145]
[1745536080130,0.29020919,600.55,599.13,0.30633145]
[1745536081834,1.27273016,600.56,599.13,0.30633145]
[1745536082433,1.27273016,600.77,599.13,0.30633145]
[1745536082635,1.27273016,600.77,599.03,0.30633145]
[1745536082930,1.27273016,600.77,599.04,0.30633145]
[1745536083234,0.29019588,600.76,599.05,0.30633145]
[1745536083435,0.29019588,600.76,599.02,1.345]
[1745536083636,0.29019588,600.76,599.06,0.30633224]
[1745536083836,0.29019588,600.76,599.02,1.345]
[1745536084038,0.29019588,600.76,599.03,0.30633252]
[1745536084837,1.27273016,600.77,599.03,0.30633252]
[1745536085336,1.27273016,600.73,599.03,0.30633252]
[1745536086036,0.29020072,600.72,599.03,0.30633252]
[1745536086837,0.29020072,600.72,599.04,0.30632968]
[1745536087036,0.29020072,600.72,599.05,0.30632968]
[1745536087336,0.29020072,600.72,599.06,0.30632968]
[1745536087534,0.29020072,600.72,599.03,0.30632968]
[1745536087735,0.29020072,600.72,599.04,0.30632968]
[1745536087937,1.27273016,600.78,599.05,0.30632968]
[1745536088135,1.27273016,600.78,599.03,0.30632968]
[1745536088336,1.27273016,600.78,599.04,0.3063273]
[1745536088536,1.27273016,600.78,599.05,0.3063273]
[1745536088736,1.27273016,600.78,599.06,0.3063273]
[1745536088939,0.29019467,600.77,599.03,0.3063273]
[1745536089137,0.29019467,600.77,599.04,0.3063273]
[1745536089440,0.29019467,600.77,599.05,0.3063273]
[1745536089737,0.29019467,600.77,599.06,0.3063273]
[1745536089932,0.29019467,600.77,599.03,0.3063273]
[1745536090137,0.29019467,600.77,599.04,0.3063273]
[1745536090337,0.29019467,600.77,599.05,0.3063273]
[1745536090540,0.29019467,600.77,599.03,0.3063273]
[1745536091339,0.29019467,600.77,599.05,1.05922751]
[1745536091340,1.27273016,600.73,599.05,1.05922751]
[1745536091541,1.27273016,600.73,599.06,0.3063273]
[1745536093544,0.29019467,600.77,599.06,0.3063273]
[1745536093737,0.29019467,600.77,599.03,0.3063273]
[1745536094034,1.27273016,600.82,599.03,0.3063273]
[1745536095041,0.29018983,600.81,599.03,0.3063273]
[1745536095939,0.29018983,600.81,599.02,1.345]
[1745536096143,0.29018983,600.81,599.03,0.30632572]
[1745536098946,0.29018983,600.81,599.02,1.345]
[1745536099141,0.29018983,600.81,599.03,0.30632809]
[1745536099845,1.27273016,600.88,599.03,0.30632809]
[1745536100350,1.27273016,600.88,599.03,1.65432809]
[1745536100648,1.27273016,600.88,599.04,0.30632809]
[1745536101149,0.29016685,600.87,599.04,0.30632809]
[1745536101950,0.29016685,600.87,599.04,1.25632809]
[1745536102249,1.27273016,600.86,599.05,0.30632809]
[1745536104053,0.29016322,600.85,599.05,0.30632809]
[1745536104353,0.29016322,600.85,599.11,1.05922751]
[1745536104655,0.29016322,600.85,599.12,0.30632809]
[1745536105053,0.29016322,600.85,599.13,1.297]
[1745536105253,0.29016322,600.85,599.14,0.30632809]
[1745536105850,1.27273016,600.87,599.14,0.30632809]
[1745536106053,1.27273016,600.87,599.14,0.29641676]
[1745536106554,2.16540896,601.0,599.14,0.29641676]
[1745536106555,1.27273016,600.85,599.14,0.29641676]
[1745536107157,0.29014386,600.84,599.14,0.29641676]
[1745536109954,0.29014386,600.84,599.15,0.30621552]
[1745536110157,0.29014386,600.84,599.14,0.30621552]
[1745536110358,0.29014386,600.84,599.15,0.30621552]
[1745536110658,0.29014386,600.84,599.16,0.30621552]
[1745536110959,0.29014386,600.84,599.17,0.30621552]
[1745536111154,0.29014386,600.84,599.14,0.30621552]
[1745536111861,1.27273016,601.01,599.14,0.30621552]
[1745536112263,1.27273016,601.23,599.14,0.30621552]
[1745536112761,1.27273016,601.23,599.13,1.297]
[1745536112957,1.27273016,601.23,599.14,0.30621901]
[1745536113159,0.29007856,601.22,599.14,0.30621901]
[1745536114964,1.27273016,601.3,599.14,0.30621901]
[1745536115164,0.29005559,601.21,599.14,0.30621901]
[1745536115564,1.27273016,601.3,599.14,0.30621901]
[1745536117260,0.29005559,601.29,599.14,0.30621901]
[1745536117461,0.29005559,601.29,599.15,1.37819519]
[1745536117666,0.29005559,601.29,599.16,0.30619519]
[1745536117969,1.27273016,601.37,599.16,0.30619519]
[1745536119167,0.29004472,601.36,599.16,0.30619519]
[1745536119768,1.27273016,601.33,599.16,0.30619519]
[1745536122069,0.29003505,601.32,599.16,0.30619519]
[1745536122769,1.27273016,601.27,599.16,0.30619519]
[1745536123565,1.27273016,601.27,599.15,1.36203505]
[1745536123771,1.27273016,601.27,599.16,0.30617798]
[1745536125167,0.2900423,601.26,599.17,0.30617797]
[1745536125373,0.2900423,601.26,599.18,0.30617797]
[1745536125673,0.2900423,601.26,599.19,0.30617797]
[1745536125874,0.2900423,601.26,599.2,0.30617797]
[1745536126070,1.27273016,601.19,599.16,0.30617797]
[1745536126275,1.27273016,601.19,599.17,0.30617797]
[1745536126475,1.27273016,601.19,599.16,0.30617797]
[1745536126676,1.27273016,601.19,599.17,0.30617797]
[1745536126877,1.27273016,601.19,599.16,0.30617797]
[1745536127075,0.29005197,601.18,599.16,0.30617797]
[1745536127577,0.29005197,601.18,599.16,1.61717797]
[1745536127771,0.29005197,601.18,599.17,0.30617797]
[1745536129778,0.29005197,601.18,599.16,1.60105076]
[1745536129979,1.27273016,601.27,599.17,0.30617811]
[1745536130379,1.27273016,601.27,599.17,1.43617811]
[1745536130580,1.27273016,601.27,599.18,0.30617811]
[1745536131081,0.29003021,601.26,599.18,0.30617811]
[1745536132883,1.27273016,601.35,599.18,0.30617811]
[1745536133084,1.27273016,601.35,599.17,1.13]
[1745536133280,1.27273016,601.35,599.18,0.306144]
[1745536134184,0.29002054,601.34,599.18,0.306144]
[1745536135886,1.27273016,601.39,599.18,0.306144]
[1745536136087,1.27273016,601.36,599.18,0.306144]
[1745536137186,0.29001933,601.35,599.18,0.306144]
[1745536137584,1.27273016,601.34,599.17,1.42001933]
[1745536137784,1.27273016,601.34,599.18,0.30614435]
[1745536139283,1.27273016,601.34,599.19,0.30614687]
[1745536139489,1.27273016,601.34,599.18,0.30614687]
[1745536139683,1.27273016,601.34,599.19,0.30614687]
[1745536139890,1.27273016,601.34,599.2,0.30614687]
[1745536140092,1.27273016,601.34,599.21,0.30614687]
[1745536140391,0.29003867,601.33,599.22,0.30614687]
[1745536140593,0.29003867,601.33,599.19,0.30614687]
[1745536140792,1.27273016,601.23,599.22,1.05922751]
[1745536141091,1.27273016,601.23,599.23,0.30619243]
[1745536141892,1.27273016,601.23,599.24,0.30619317]
[1745536142097,0.29004592,601.22,599.25,0.30619317]
[1745536142287,0.29004592,601.22,599.26,0.30619317]
[1745536142488,0.29004592,601.22,599.27,0.30619317]
[1745536142692,0.29004592,601.22,599.23,0.30619317]
[1745536142892,0.29004592,601.22,599.24,0.30619317]
[1745536143195,0.29004592,601.22,599.25,0.30619317]
[1745536143493,0.29004592,601.22,599.26,0.30619317]
[1745536143695,0.29004592,601.22,599.22,1.05922751]
[1745536143893,0.29004592,601.22,599.23,0.30622034]
[1745536144793,0.29004592,601.22,599.21,0.30622034]
[1745536144992,0.29004592,601.22,599.22,0.30622137]
[1745536145193,0.29004592,601.22,599.21,0.30622137]
[1745536145393,0.29004592,601.22,599.22,0.30622137]
[1745536145593,0.29004592,601.22,599.21,0.30622137]
[1745536145794,0.29004592,601.22,599.22,0.30622137]
[1745536145990,0.29004592,601.22,599.21,0.30622137]
[1745536146193,0.29004592,601.22,599.22,0.30622137]
[1745536146395,0.29004592,601.22,599.21,0.30622137]
[1745536147393,1.27273016,601.04,599.22,0.979]
[1745536147596,1.27273016,601.04,599.23,0.30622137]
[1745536148099,1.27273016,601.04,599.24,0.30619463]
[1745536148399,1.27273016,601.04,599.25,0.30619463]
[1745536148598,1.27273016,601.04,599.23,0.30619463]
[1745536148898,1.27273016,601.04,599.24,0.30619463]
[1745536149094,0.29007614,601.03,599.23,0.30619463]
[1745536149293,0.29007614,601.03,599.24,0.30619463]
[1745536149497,0.29007614,601.03,599.23,0.30619463]
[1745536149698,0.29007614,601.03,599.24,0.30619463]
[1745536149895,0.29007614,601.03,599.25,0.30619463]
[1745536150094,0.29007614,601.03,599.26,0.30619463]
[1745536150294,0.29007614,601.03,599.23,0.30619463]
[1745536150499,0.29007614,601.03,599.24,0.30619463]
[1745536150694,0.29007614,601.03,599.23,0.30619463]
[1745536150897,1.27273016,601.27,599.24,0.30619463]
[1745536151096,1.27273016,601.27,599.23,0.30619463]
[1745536151400,1.27273016,601.27,599.24,0.30619463]
[1745536151602,1.27273016,601.27,599.23,0.30619463]
[1745536151799,1.27273016,601.27,599.24,0.30619463]
[1745536152001,1.27273016,601.27,599.25,0.30619463]
[1745536152197,0.29004834,601.26,599.23,0.30619463]
[1745536152401,0.29004834,601.26,599.24,0.30619463]
[1745536152604,0.29004834,601.26,599.22,1.26904834]
[1745536152800,0.29004834,601.26,599.23,0.3061987]
[1745536153905,1.27273016,601.27,599.23,0.3061987]
[1745536155106,0.29004834,601.26,599.23,0.3061987]
[1745536155700,0.29004834,601.26,599.22,1.26904834]
[1745536156004,0.29004834,601.26,599.23,0.30619213]
[1745536156904,1.27273016,601.27,599.23,0.30619213]
[1745536157102,0.29004834,601.25,599.23,0.30619213]
[1745536158711,1.27273016,601.13,599.23,0.30619213]
[1745536158907,1.27273016,601.13,599.24,0.30619057]
[1745536159107,1.27273016,601.13,599.23,0.30619057]
[1745536159409,1.27273016,601.13,599.24,0.30619057]
[1745536159610,1.27273016,601.13,599.25,0.30619057]
[1745536159804,1.27273016,601.13,599.23,0.30619057]
[1745536160009,1.27273016,601.13,599.24,0.30619057]
[1745536160309,1.27273016,601.13,599.25,0.30619085]
[1745536160505,1.27273016,601.13,599.23,0.30619085]
[1745536160706,1.27273016,601.13,599.24,0.30619085]
[1745536160909,1.27273016,601.13,599.25,0.30619085]
[1745536161109,0.29004834,601.25,599.26,0.30619085]